fUST/lending_fUST_20241110
["ID","MTS","AMOUNT","RATE_DAILY","PERIOD"]
[341771515,1731221444431,-602.31,0.00030136,2]
[341771516,1731221444440,-500.0,0.00030136,2]
[341771518,1731221444450,-602.31,0.00030136,2]
[341771519,1731221444459,-602.31,0.00030136,2]
[341771521,1731221444468,-602.31,0.00030136,2]
[341771523,1731221444478,-328.72197222,0.00030136,2]
[341771605,1731221446026,-273.58802778,0.00030136,2]
[341771607,1731221446036,-602.31,0.00030136,2]
[341771609,1731221446046,-602.31,0.00030136,2]
[341771611,1731221446057,-602.31,0.00030136,2]
[341771613,1731221446066,-602.31,0.00030136,2]
[341771615,1731221446076,-602.31,0.00030136,2]
[341771617,1731221446086,-602.31,0.00030136,2]
[341771619,1731221446096,-602.31,0.00030136,2]
[341771621,1731221446106,-602.31,0.00030136,2]
[341771623,1731221446116,-602.31,0.00030136,2]
[341771625,1731221446126,-602.31,0.00030136,2]
[341771627,1731221446135,-500.0,0.00030136,2]
[341771629,1731221446145,-513.75681536,0.00030136,2]
[341771631,1731221446156,-500.0,0.00030136,2]
[341771633,1731221446166,-74.05515686,0.00030136,2]
[341771636,1731221446179,-274.81171886,0.00030136,2]
[341780809,1731221988887,162.966881,0.00013973,2]
[341780810,1731222081603,607.63888889,0.00020844,2]
[341780811,1731222147967,2927.06984928,0.00020844,2]
[341780813,1731222299666,5000.0,0.00020844,2]
[341780819,1731222316341,2321.10229976,0.00020844,2]
[341780897,1731222632240,-607.63888889,0.00020962,2]
[341780898,1731222632250,-312.24608948,0.00021119,2]
[341780900,1731222632259,-1260.0,0.0002245,2]
[341780902,1731222632268,-162.966881,0.00022759,2]
[341780904,1731222632278,-1260.0,0.00024695,4]
[341780905,1731222632287,-8545.39493573,0.00024752,2]
[341780940,1731222638493,-150.42261966,0.00024658,2]
[341780942,1731222638503,-1300.81658037,0.00024752,2]
[341780952,1731222638580,-257.09,0.00024752,2]
[341780954,1731222638591,-319.2398709,0.00024752,2]
[341781095,1731222646037,-607.63888889,0.0002245,2]
[341781097,1731222646047,-14477.458613,0.00024752,2]
[341781099,1731222646056,-300.0,0.00024757,2]
[341781101,1731222646066,-300.0,0.00024757,2]
[341781103,1731222646074,-825.22840512,0.00024758,2]
[341781105,1731222646085,-16604.5337349,0.00024758,2]
[341781107,1731222646094,-3000.0,0.00024808,2]
[341781109,1731222646103,-420.0,0.00026826,2]
[341781111,1731222646112,-1260.0,0.00027165,7]
[341781113,1731222646123,-180.0,0.00027232,2]
[341781115,1731222646136,-3197.89605154,0.00028486,2]
[341781118,1731222646150,-319.362256,0.00028586,2]
[341781120,1731222646164,-3197.89605152,0.00028937,2]
[341781122,1731222646177,-167.188,0.0002904,2]
[341781125,1731222646191,-545.0,0.00029069,2]
[341781127,1731222646203,-3197.89605152,0.00029389,2]
[341781130,1731222646218,-7240.8058996,0.00029705,2]
[341781133,1731222646233,-1000.0,0.000298,2]
[341781135,1731222646247,-301.630352,0.00029808,30]
[341781138,1731222646259,-153.0,0.00029808,30]
[341781140,1731222646273,-153.0,0.00029808,30]
[341781142,1731222646287,-153.0,0.00029808,30]
[341781145,1731222646302,-438.61726432,0.00029836,2]
[341781147,1731222646315,-3197.89605152,0.0002984,2]
[341781149,1731222646329,-167.234,0.00029847,120]
[341781152,1731222646345,-1260.0,0.00029881,14]
[341781154,1731222646358,-801.18,0.0002989,10]
[341781157,1731222646371,-345.49,0.0002989,3]
[341781159,1731222646383,-667.65,0.0002989,10]
[341781161,1731222646398,-172.74,0.0002989,3]
[341781163,1731222646412,-657.55,0.00029899,2]
[341781166,1731222646425,-500.0,0.00029899,2]
[341781168,1731222646437,-206.51933106,0.00029899,2]
[341781170,1731222646448,-500.0,0.00029899,2]
[341781172,1731222646459,-500.0,0.00029899,2]
[341781174,1731222646472,-500.0,0.00029899,2]
[341781176,1731222646483,-500.0,0.00029899,2]
[341781179,1731222646495,-500.0,0.00029899,2]
[341781181,1731222646507,-500.0,0.00029899,2]
[341781183,1731222646520,-500.0,0.00029899,2]
[341781186,1731222646533,-500.0,0.00029899,2]
[341781188,1731222646546,-500.0,0.00029899,2]
[341781190,1731222646559,-236.44819545,0.00029899,2]
[341781193,1731222646572,-500.0,0.00029899,2]
[341781195,1731222646586,-500.0,0.00029899,2]
[341781198,1731222646600,-500.0,0.00029899,2]
[341781200,1731222646611,-500.0,0.00029899,2]
[341781202,1731222646622,-500.0,0.00029899,2]
[341781204,1731222646632,-500.0,0.00029899,2]
[341781206,1731222646644,-500.0,0.00029899,2]
[341781209,1731222646657,-500.0,0.00029899,2]
[341781211,1731222646671,-500.0,0.00029899,2]
[341781213,1731222646685,-500.0,0.00029899,2]
[341781216,1731222646697,-500.0,0.00029899,2]
[341781218,1731222646709,-500.0,0.00029899,2]
[341781220,1731222646722,-500.0,0.00029899,2]
[341781222,1731222646733,-500.0,0.00029899,2]
[341781224,1731222646747,-500.0,0.00029899,2]
[341781226,1731222646758,-336.15783561,0.00029899,2]
[341781229,1731222646769,-500.0,0.00029899,2]
[341781231,1731222646780,-500.0,0.00029899,2]
[341781233,1731222646791,-500.0,0.00029899,2]
[341781235,1731222646802,-500.0,0.00029899,2]
[341781237,1731222646813,-500.0,0.00029899,2]
[341781239,1731222646826,-500.0,0.00029899,2]
[341781242,1731222646837,-500.0,0.00029899,2]
[341781244,1731222646848,-500.0,0.00029899,2]
[341781246,1731222646859,-158.50447673,0.00029899,2]
[341781248,1731222646870,-500.0,0.00029899,2]
[341781250,1731222646881,-500.0,0.00029899,2]
[341781252,1731222646895,-500.0,0.00029899,2]
[341781254,1731222646907,-500.0,0.00029899,2]
[341781257,1731222646919,-500.0,0.00029899,2]
[341781259,1731222646931,-499.99999999,0.00029899,2]
[341781261,1731222646943,-200000.0,0.000299,14]
[341781263,1731222646955,-1006.1984377,0.00029936,2]
[341781266,1731222646970,-500.0,0.00029999,2]
[341781268,1731222646983,-290.3889032,0.00030082,30]
[341781270,1731222646995,-455.5574532,0.00030082,30]
[341781272,1731222647007,-153.0,0.00030082,30]
[341781274,1731222647019,-212.0390805,0.00030082,30]
[341781276,1731222647032,-212.0390805,0.00030082,30]
[341781279,1731222647044,-153.0,0.00030082,30]
[341781281,1731222647055,-212.0390805,0.00030082,30]
[341781283,1731222647066,-212.0390805,0.00030082,30]
[341781285,1731222647078,-153.0,0.00030082,30]
[341781287,1731222647089,-212.0390805,0.00030082,30]
[341781289,1731222647099,-212.0390805,0.00030082,30]
[341781292,1731222647110,-212.0390805,0.00030082,30]
[341781294,1731222647122,-153.0,0.00030082,30]
[341781296,1731222647132,-212.0390805,0.00030082,30]
[341781298,1731222647143,-153.0,0.00030082,30]
[341781300,1731222647154,-212.0390805,0.00030082,30]
[341781302,1731222647166,-212.0390805,0.00030082,30]
[341781305,1731222647177,-153.0,0.00030082,30]
[341781307,1731222647187,-212.0390805,0.00030082,30]
[341781309,1731222647198,-153.0,0.00030082,30]
[341781311,1731222647210,-212.0390805,0.00030082,30]
[341781313,1731222647222,-212.0390805,0.00030082,30]
[341781315,1731222647233,-153.0,0.00030082,30]
[341781317,1731222647244,-212.0390805,0.00030082,30]
[341781320,1731222647255,-153.0,0.00030082,30]
[341781322,1731222647267,-473.8097805,0.00030082,30]
[341781324,1731222647279,-157.508946,0.000301,16]
[341781326,1731222647291,-7240.80589961,0.00030103,2]
[341781329,1731222647303,-384.10101113,0.00030136,2]
[341781331,1731222647315,-756.24857115,0.00030136,2]
[341781333,1731222647325,-500.0,0.00030136,15]
[341781349,1731222647466,-500.0,0.00030136,2]
[341781351,1731222647479,-500.0,0.00030136,2]
[341781353,1731222647488,-517.49258029,0.00030136,2]
[341781355,1731222647497,-512.04210063,0.00030136,2]
[341781357,1731222647507,-500.0,0.00030136,2]
[341781359,1731222647515,-500.0,0.00030136,2]
[341781361,1731222647525,-500.0,0.00030136,2]
[341781363,1731222647534,-500.0,0.00030136,2]
[341781365,1731222647545,-500.0,0.00030136,2]
[341781367,1731222647554,-500.0,0.00030136,2]
[341781369,1731222647564,-500.0,0.00030136,2]
[341781371,1731222647573,-500.0,0.00030136,2]
[341781373,1731222647583,-500.0,0.00030136,2]
[341781375,1731222647592,-500.0,0.00030136,2]
[341781377,1731222647601,-524.12133135,0.00030136,2]
[341781379,1731222647610,-500.0,0.00030136,2]
[341781381,1731222647619,-508.86533384,0.00030136,2]
[341781383,1731222647628,-201.12263081,0.00030136,2]
[341781385,1731222647637,-500.0,0.00030136,2]
[341781387,1731222647646,-271.39647256,0.00030136,2]
[341781389,1731222647655,-500.0,0.00030136,2]
[341781391,1731222647664,-575.3886209,0.00030136,2]
[341781393,1731222647673,-500.0,0.00030136,2]
[341781395,1731222647682,-500.0,0.00030136,2]
[341781397,1731222647691,-500.0,0.00030136,2]
[341781399,1731222647701,-500.0,0.00030136,2]
[341781401,1731222647710,-500.0,0.00030136,2]
[341781403,1731222647720,-438.01200611,0.00030136,2]
[341781405,1731222647729,-500.0,0.00030136,2]
[341781407,1731222647738,-500.0,0.00030136,2]
[341781409,1731222647748,-500.0,0.00030136,2]
[341781411,1731222647758,-375.77973367,0.00030136,2]
[341781413,1731222647767,-500.0,0.00030136,2]
[341781415,1731222647777,-500.0,0.00030136,2]
[341781417,1731222647786,-500.0,0.00030136,2]
[341781419,1731222647796,-510.80193615,0.00030136,2]
[341781421,1731222647805,-500.0,0.00030136,2]
[341781423,1731222647815,-500.0,0.00030136,2]
[341781425,1731222647824,-330.32095284,0.00030136,2]
[341781427,1731222647834,-568.00927089,0.00030136,2]
[341781429,1731222647843,-500.0,0.00030136,2]
[341781431,1731222647852,-500.0,0.00030136,2]
[341781434,1731222647862,-505.72,0.00030136,2]
[341781436,1731222647872,-500.0,0.00030136,2]
[341781437,1731222647881,-500.0,0.00030136,2]
[341781440,1731222647892,-500.0,0.00030136,2]
[341781442,1731222647902,-500.0,0.00030136,2]
[341781444,1731222647912,-406.59814046,0.00030136,2]
[341781446,1731222647921,-500.0,0.00030136,2]
[341781448,1731222647930,-500.0,0.00030136,2]
[341781450,1731222647941,-500.0,0.00030136,2]
[341781452,1731222647951,-500.0,0.00030136,2]
[341781454,1731222647960,-500.0,0.00030136,2]
[341781456,1731222647970,-500.0,0.00030136,2]
[341781458,1731222647979,-500.0,0.00030136,2]
[341781460,1731222647989,-278.08834933,0.00030136,2]
[341781462,1731222647998,-507.57734434,0.00030136,2]
[341781464,1731222648008,-406.63178476,0.00030136,2]
[341781466,1731222648017,-614.290382,0.00030136,2]
[341781468,1731222648026,-500.0,0.00030136,2]
[341781470,1731222648035,-539.44,0.00030136,2]
[341781472,1731222648045,-500.0,0.00030136,2]
[341781474,1731222648055,-500.0,0.00030136,2]
[341781476,1731222648064,-500.0,0.00030136,2]
[341781478,1731222648073,-500.0,0.00030136,2]
[341781480,1731222648082,-500.0,0.00030136,2]
[341781482,1731222648092,-500.0,0.00030136,2]
[341781484,1731222648102,-503.84392043,0.00030136,2]
[341781486,1731222648110,-500.0,0.00030136,7]
[341781488,1731222648119,-500.0,0.00030136,2]
[341781490,1731222648128,-500.0,0.00030136,2]
[341781492,1731222648137,-500.0,0.00030136,2]
[341781494,1731222648146,-506.6062354,0.00030136,2]
[341781496,1731222648155,-500.0,0.00030136,2]
[341781498,1731222648164,-500.0,0.00030136,2]
[341781500,1731222648173,-500.0,0.00030136,2]
[341781502,1731222648183,-1841.88,0.00030136,2]
[341781504,1731222648193,-500.0,0.00030136,2]
[341781506,1731222648202,-500.0,0.00030136,2]
[341781508,1731222648211,-1033.3,0.00030136,2]
[341781510,1731222648221,-500.0,0.00030136,2]
[341781512,1731222648230,-500.0,0.00030136,2]
[341781514,1731222648240,-500.0,0.00030136,2]
[341781516,1731222648249,-500.0,0.00030136,2]
[341781518,1731222648258,-516.31066089,0.00030136,2]
[341781520,1731222648267,-583.9858738,0.00030136,2]
[341781522,1731222648276,-500.0,0.00030136,2]
[341781524,1731222648285,-500.0,0.00030136,2]
[341781526,1731222648294,-500.0,0.00030136,2]
[341781528,1731222648304,-529.01742182,0.00030136,2]
[341781530,1731222648313,-500.0,0.00030136,2]
[341781532,1731222648322,-500.0,0.00030136,2]
[341781534,1731222648331,-500.0,0.00030136,2]
[341781536,1731222648342,-500.0,0.00030136,2]
[341781538,1731222648351,-500.0,0.00030136,2]
[341781540,1731222648361,-500.0,0.00030136,2]
[341781542,1731222648371,-605.16076335,0.00030136,2]
[341781544,1731222648380,-518.29428407,0.00030136,2]
[341781546,1731222648390,-500.0,0.00030136,2]
[341781548,1731222648400,-507.14610939,0.00030136,2]
[341781550,1731222648409,-500.0,0.00030136,2]
[341781552,1731222648418,-500.0,0.00030136,2]
[341781554,1731222648428,-500.0,0.00030136,2]
[341781556,1731222648437,-500.0,0.00030136,2]
[341781558,1731222648446,-503.34281419,0.00030136,2]
[341781560,1731222648456,-500.0,0.00030136,2]
[341781562,1731222648466,-500.0,0.00030136,2]
[341781564,1731222648476,-500.0,0.00030136,2]
[341781566,1731222648485,-500.0,0.00030136,2]
[341781569,1731222648494,-500.0,0.00030136,2]
[341781571,1731222648504,-504.33291758,0.00030136,2]
[341781572,1731222648513,-500.0,0.00030136,2]
[341781574,1731222648522,-501.88231188,0.00030136,2]
[341781576,1731222648532,-507.93039765,0.00030136,2]
[341781578,1731222648541,-502.66875593,0.00030136,2]
[341781580,1731222648550,-500.0,0.00030136,2]
[341781582,1731222648560,-506.73183209,0.00030136,2]
[341781584,1731222648569,-506.83734505,0.00030136,2]
[341781586,1731222648578,-500.0,0.00030136,2]
[341781589,1731222648588,-500.0,0.00030136,2]
[341781591,1731222648597,-509.61172301,0.00030136,2]
[341781593,1731222648607,-502.48448002,0.00030136,2]
[341781595,1731222648616,-500.0,0.00030136,2]
[341781597,1731222648625,-500.0,0.00030136,2]
[341781599,1731222648634,-503.18236488,0.00030136,2]
[341781600,1731222648644,-601.32,0.00030136,2]
[341781601,1731222648653,-500.0,0.00030136,2]
[341781602,1731222648663,-507.2225524,0.00030136,2]
[341781603,1731222648672,-500.0,0.00030136,2]
[341781604,1731222648682,-500.0,0.00030136,2]
[341781605,1731222648691,-503.57937093,0.00030136,2]
[341781606,1731222648700,-620.52434027,0.00030136,2]
[341781607,1731222648709,-500.0,0.00030136,2]
[341781608,1731222648721,-500.0,0.00030136,2]
[341781609,1731222648731,-500.0,0.00030136,2]
[341781610,1731222648740,-500.0,0.00030136,2]
[341781611,1731222648750,-500.0,0.00030136,2]
[341781612,1731222648760,-500.0,0.00030136,2]
[341781613,1731222648769,-500.0,0.00030136,2]
[341781614,1731222648779,-547.36290395,0.00030136,2]
[341781615,1731222648788,-500.0,0.00030136,2]
[341781616,1731222648798,-500.0,0.00030136,2]
[341781617,1731222648808,-500.0,0.00030136,2]
[341781618,1731222648818,-200.0,0.00030136,2]
[341781619,1731222648827,-565.04,0.00030136,2]
[341781620,1731222648836,-500.0,0.00030136,2]
[341781621,1731222648845,-500.0,0.00030136,2]
[341781622,1731222648855,-500.0,0.00030136,2]
[341781623,1731222648864,-500.0,0.00030136,2]
[341781624,1731222648873,-225.53371993,0.00030136,2]
[341781625,1731222648882,-500.0,0.00030136,2]
[341781626,1731222648893,-500.0,0.00030136,2]
[341781627,1731222648903,-500.0,0.00030136,2]
[341781628,1731222648912,-500.0,0.00030136,2]
[341781629,1731222648920,-500.0,0.00030136,2]
[341781631,1731222648929,-500.0,0.00030136,2]
[341781633,1731222648939,-492.00199656,0.00030136,2]
[341781635,1731222648948,-500.0,0.00030136,2]
[341781637,1731222648957,-500.0,0.00030136,2]
[341781639,1731222648967,-500.0,0.00030136,2]
[341781641,1731222648976,-581.61365608,0.00030136,2]
[341781643,1731222648985,-500.0,0.00030136,2]
[341781645,1731222648993,-500.0,0.00030136,2]
[341781647,1731222649002,-500.0,0.00030136,2]
[341781649,1731222649011,-500.0,0.00030136,2]
[341781652,1731222649021,-755.71,0.00030136,2]
[341781654,1731222649030,-500.0,0.00030136,2]
[341781656,1731222649040,-500.0,0.00030136,2]
[341781658,1731222649049,-500.0,0.00030136,2]
[341781660,1731222649059,-500.0,0.00030136,2]
[341781662,1731222649068,-500.0,0.00030136,2]
[341781664,1731222649077,-500.0,0.00030136,2]
[341781666,1731222649086,-506.13107154,0.00030136,2]
[341781668,1731222649095,-500.0,0.00030136,2]
[341781670,1731222649104,-500.0,0.00030136,2]
[341781672,1731222649114,-500.0,0.00030136,2]
[341781674,1731222649123,-500.0,0.00030136,2]
[341781676,1731222649132,-500.0,0.00030136,2]
[341781678,1731222649142,-574.7772369,0.00030136,2]
[341781680,1731222649151,-500.0,0.00030136,2]
[341781681,1731222649160,-918.95,0.00030136,2]
[341781683,1731222649170,-2904.28,0.00030136,2]
[341781685,1731222649179,-1674.14,0.00030136,2]
[341781687,1731222649188,-500.0,0.00030136,2]
[341781689,1731222649197,-500.0,0.00030136,2]
[341781691,1731222649207,-597.86,0.00030136,2]
[341781693,1731222649218,-500.0,0.00030136,2]
[341781695,1731222649227,-500.0,0.00030136,2]
[341781697,1731222649236,-500.0,0.00030136,2]
[341781699,1731222649245,-562.3856789,0.00030136,2]
[341781701,1731222649255,-500.0,0.00030136,2]
[341781703,1731222649264,-500.0,0.00030136,2]
[341781705,1731222649273,-500.0,0.00030136,2]
[341781707,1731222649282,-500.0,0.00030136,2]
[341781709,1731222649292,-2166.15,0.00030136,2]
[341781711,1731222649301,-500.0,0.00030136,2]
[341781713,1731222649311,-500.0,0.00030136,2]
[341781715,1731222649320,-500.0,0.00030136,2]
[341781717,1731222649329,-500.0,0.00030136,2]
[341781719,1731222649339,-590.99497339,0.00030136,2]
[341781721,1731222649348,-500.0,0.00030136,2]
[341781723,1731222649357,-516.64163224,0.00030136,2]
[341781725,1731222649366,-500.0,0.00030136,2]
[341781727,1731222649376,-500.0,0.00030136,2]
[341781729,1731222649385,-500.0,0.00030136,2]
[341781731,1731222649394,-4972.71,0.00030136,2]
[341781733,1731222649404,-502.63990946,0.00030136,2]
[341781735,1731222649413,-500.0,0.00030136,2]
[341781737,1731222649422,-500.0,0.00030136,2]
[341781739,1731222649433,-500.0,0.00030136,2]
[341781741,1731222649443,-517.25639911,0.00030136,2]
[341781743,1731222649452,-369.96730436,0.00030136,2]
[341781745,1731222649462,-500.0,0.00030136,120]
[341781747,1731222649471,-500.0,0.00030136,2]
[341781749,1731222649480,-500.0,0.00030136,2]
[341781751,1731222649490,-500.0,0.00030136,2]
[341781753,1731222649499,-500.0,0.00030136,2]
[341781755,1731222649509,-600.78046908,0.00030136,2]
[341781757,1731222649518,-500.0,0.00030136,2]
[341781759,1731222649527,-500.0,0.00030136,2]
[341781761,1731222649536,-500.0,0.00030136,2]
[341781763,1731222649546,-500.0,0.00030136,2]
[341781765,1731222649555,-500.0,0.00030136,2]
[341781767,1731222649564,-500.0,0.00030136,2]
[341781769,1731222649574,-500.0,0.00030136,2]
[341781771,1731222649583,-500.0,0.00030136,2]
[341781773,1731222649593,-500.0,0.00030136,2]
[341781775,1731222649603,-500.0,0.00030136,2]
[341781777,1731222649612,-640.82180995,0.00030136,2]
[341781779,1731222649621,-508.11830756,0.00030136,2]
[341781781,1731222649630,-500.0,0.00030136,2]
[341781783,1731222649640,-500.0,0.00030136,2]
[341781785,1731222649649,-500.0,0.00030136,2]
[341781787,1731222649659,-500.0,0.00030136,2]
[341781789,1731222649668,-500.0,0.00030136,2]
[341781791,1731222649677,-500.0,0.00030136,2]
[341781793,1731222649687,-500.0,0.00030136,2]
[341781795,1731222649696,-500.0,0.00030136,2]
[341781797,1731222649706,-500.0,0.00030136,2]
[341781799,1731222649718,-318.68756427,0.00030136,2]
[341781801,1731222649728,-500.0,0.00030136,2]
[341781803,1731222649738,-500.0,0.00030136,2]
[341781805,1731222649747,-500.0,0.00030136,2]
[341781807,1731222649756,-500.0,0.00030136,2]
[341781809,1731222649765,-500.0,0.00030136,2]
[341781811,1731222649775,-500.0,0.00030136,2]
[341781821,1731222649783,-500.0,0.00030136,2]
[341781824,1731222649874,-500.0,0.00030136,2]
[341781826,1731222649884,-500.0,0.00030136,2]
[341781827,1731222649895,-503.8118111,0.00030136,2]
[341781829,1731222649905,-500.0,0.00030136,2]
[341781831,1731222649914,-500.0,0.00030136,2]
[341781833,1731222649924,-530.27047227,0.00030136,2]
[341781835,1731222649933,-500.0,0.00030136,2]
[341781837,1731222649943,-500.0,0.00030136,2]
[341781839,1731222649952,-500.0,0.00030136,2]
[341781841,1731222649962,-500.0,0.00030136,2]
[341781843,1731222649972,-291.49998199,0.00030136,2]
[341781845,1731222649981,-500.0,0.00030136,2]
[341781847,1731222649991,-500.0,0.00030136,2]
[341781849,1731222650000,-500.0,0.00030136,2]
[341781851,1731222650009,-524.2664288,0.00030136,2]
[341781853,1731222650019,-502.95133685,0.00030136,2]
[341781855,1731222650027,-500.0,0.00030136,2]
[341781857,1731222650037,-500.0,0.00030136,2]
[341781859,1731222650046,-500.0,0.00030136,2]
[341781861,1731222650055,-507.33015423,0.00030136,2]
[341781863,1731222650064,-500.0,0.00030136,2]
[341781865,1731222650073,-500.0,0.00030136,2]
[341781867,1731222650083,-500.0,0.00030136,2]
[341781869,1731222650092,-500.0,0.00030136,2]
[341781871,1731222650101,-500.0,0.00030136,2]
[341781873,1731222650110,-500.0,0.00030136,2]
[341781875,1731222650119,-19230.79264533,0.00030136,2]
[341781876,1731222650128,-478.63662479,0.00030136,2]
[341781878,1731222650137,-500.0,0.00030136,2]
[341781880,1731222650146,-500.0,0.00030136,2]
[341781882,1731222650155,-500.0,0.00030136,2]
[341781884,1731222650164,-1319.43,0.00030136,2]
[341781886,1731222650174,-500.0,0.00030136,2]
[341781888,1731222650183,-250.0,0.00030136,2]
[341781890,1731222650192,-3282.55,0.00030136,120]
[341781892,1731222650202,-626.13283532,0.00030136,2]
[341781894,1731222650211,-500.0,0.00030136,2]
[341781896,1731222650220,-200.55,0.00030136,2]
[341781898,1731222650229,-554.08560707,0.00030136,2]
[341781900,1731222650238,-500.0,0.00030136,2]
[341781902,1731222650247,-500.0,0.00030136,2]
[341781904,1731222650257,-500.0,0.00030136,2]
[341781906,1731222650266,-500.0,0.00030136,2]
[341781908,1731222650275,-500.0,0.00030136,2]
[341781910,1731222650284,-506.7183527,0.00030136,2]
[341781912,1731222650293,-329.93242616,0.00030136,2]
[341781914,1731222650302,-500.0,0.00030136,2]
[341781916,1731222650312,-500.0,0.00030136,2]
[341781918,1731222650321,-500.0,0.00030136,2]
[341781920,1731222650330,-500.0,0.00030136,2]
[341781922,1731222650341,-500.0,0.00030136,2]
[341781924,1731222650351,-500.0,0.00030136,2]
[341781926,1731222650360,-500.0,0.00030136,2]
[341781929,1731222650370,-500.0,0.00030136,2]
[341781931,1731222650380,-626.7281707,0.00030136,2]
[341781932,1731222650389,-500.0,0.00030136,2]
[341781935,1731222650399,-500.0,0.00030136,2]
[341781937,1731222650408,-500.0,0.00030136,2]
[341781939,1731222650417,-500.0,0.00030136,2]
[341781940,1731222650427,-500.0,0.00030136,2]
[341781942,1731222650436,-500.0,0.00030136,2]
[341781945,1731222650446,-503.03336089,0.00030136,2]
[341781946,1731222650455,-500.0,0.00030136,2]
[341781949,1731222650465,-157.61802115,0.00030136,2]
[341781950,1731222650474,-500.0,0.00030136,2]
[341781952,1731222650484,-505.79039904,0.00030136,2]
[341781954,1731222650494,-500.0,0.00030136,2]
[341781956,1731222650503,-500.0,0.00030136,2]
[341781958,1731222650512,-500.0,0.00030136,2]
[341781961,1731222650522,-500.0,0.00030136,2]
[341781963,1731222650531,-500.0,0.00030136,2]
[341781965,1731222650540,-500.0,0.00030136,2]
[341781966,1731222650550,-610.47796792,0.00030136,2]
[341781968,1731222650558,-500.0,0.00030136,2]
[341781970,1731222650568,-438.61726428,0.0003016,2]
[341781972,1731222650577,-505.79183929,0.00030173,5]
[341781974,1731222650587,-500.21512103,0.00030173,5]
[341781976,1731222650597,-502.91835753,0.00030173,5]
[341781978,1731222650606,-502.5963108,0.00030173,5]
[341781980,1731222650615,-502.57678498,0.00030173,5]
[341781982,1731222650624,-160.49775391,0.00030173,5]
[341781984,1731222650633,-500.0,0.00030173,5]
[341781986,1731222650642,-201.69309713,0.00030173,5]
[341781988,1731222650652,-363.54342715,0.00030173,5]
[341781990,1731222650661,-150.73391277,0.00030173,5]
[341781992,1731222650671,-501.95037295,0.00030173,5]
[341781994,1731222650680,-500.0,0.00030173,5]
[341781996,1731222650689,-173.08212177,0.00030173,5]
[341781998,1731222650698,-500.0,0.00030173,5]
[341782000,1731222650707,-150.112233,0.000302,20]
[341782002,1731222650716,-3197.89605152,0.00030292,2]
[341782004,1731222650725,-331.86982736,0.0003031,2]
[341782006,1731222650734,-24666.58518291,0.000304,2]
[341782008,1731222650743,-150.112233,0.000304,18]
[341782010,1731222650752,-500.0,0.0003041,15]
[341782012,1731222650761,-511.5680781,0.0003041,2]
[341782014,1731222650770,-500.0,0.0003041,2]
[341782016,1731222650779,-500.0,0.0003041,2]
[341782018,1731222650788,-151.13312428,0.0003041,2]
[341782020,1731222650797,-500.0,0.0003041,2]
[341782022,1731222650806,-500.0,0.0003041,2]
[341782024,1731222650815,-500.0,0.0003041,2]
[341782026,1731222650825,-500.0,0.0003041,2]
[341782028,1731222650834,-157.67495023,0.0003041,2]
[341782030,1731222650843,-500.0,0.0003041,2]
[341782032,1731222650852,-500.0,0.0003041,2]
[341782034,1731222650861,-500.0,0.0003041,2]
[341782036,1731222650870,-500.0,0.0003041,2]